lending/lending_fUSD_20250224
["ID","MTS","AMOUNT","RATE_DAILY","PERIOD"]
[354234902,1740357044694,-500.0,0.00016438,2]
[354234903,1740357044703,-500.0,0.00016438,2]
[354234904,1740357044712,-969.32,0.00016438,2]
[354234905,1740357044722,-500.0,0.00016438,2]
[354234906,1740357044731,-500.0,0.00016438,2]
[354234907,1740357044740,-581.96,0.00016438,2]
[354234908,1740357044749,-500.0,0.00016438,2]
[354234909,1740357044759,-455.20416461,0.00016438,2]
[354234910,1740357044768,-500.0,0.00016438,2]
[354234911,1740357044777,-1688.26,0.00016438,2]
[354234912,1740357044787,-755.92,0.00016438,2]
[354234913,1740357044796,-608.12,0.00016438,2]
[354234914,1740357044806,-500.0,0.00016438,2]
[354234915,1740357044815,-500.0,0.00016438,2]
[354234916,1740357044824,-731.87,0.00016438,2]
[354234917,1740357044834,-610.03,0.00016438,2]
[354234918,1740357044842,-530.33,0.00016438,2]
[354234919,1740357044852,-500.0,0.00016438,2]
[354234920,1740357044861,-516.75,0.00016438,2]
[354234921,1740357044870,-500.0,0.00016438,2]
[354234922,1740357044879,-588.53,0.00016438,2]
[354234923,1740357044888,-892.38,0.00016438,2]
[354234924,1740357044897,-500.0,0.00016438,2]
[354234925,1740357044907,-500.0,0.00016438,2]
[354234926,1740357044916,-500.0,0.00016438,2]
[354234927,1740357044926,-500.0,0.00016438,2]
[354234928,1740357044935,-500.0,0.00016438,2]
[354234929,1740357044944,-500.0,0.00016438,2]
[354234930,1740357044953,-525.63,0.00016438,2]
[354234931,1740357044963,-500.0,0.00016438,2]
[354234932,1740357044972,-718.45,0.00016438,2]
[354234933,1740357044982,-597.29429723,0.00016438,2]
[354234934,1740357044991,-500.0,0.00016438,2]
[354234935,1740357045000,-1360.92,0.00016438,2]
[354234936,1740357045010,-1108.96,0.00016438,2]
[354234937,1740357045019,-500.0,0.00016438,2]
[354234938,1740357045028,-500.0,0.00016438,2]
[354234939,1740357045038,-500.0,0.00016438,2]
[354234940,1740357045047,-1321.6,0.00016438,2]
[354234941,1740357045056,-511.81,0.00016438,2]
[354234942,1740357045065,-500.0,0.00016438,2]
[354234943,1740357045074,-500.0,0.00016438,2]
[354234944,1740357045083,-691.9,0.00016438,2]
[354234945,1740357045092,-500.0,0.00016438,2]
[354234946,1740357045101,-500.0,0.00016438,2]
[354234947,1740357045111,-855.06,0.00016438,2]
[354234948,1740357045120,-643.72,0.00016438,2]
[354234949,1740357045129,-1162.85,0.00016438,2]
[354234950,1740357045138,-500.0,0.00016438,2]
[354234951,1740357045147,-500.0,0.00016438,2]
[354234952,1740357045157,-500.0,0.00016438,2]
[354234953,1740357045166,-500.0,0.00016438,2]
[354234954,1740357045175,-1251.58,0.00016438,2]
[354234955,1740357045185,-606.52,0.00016438,2]
[354234956,1740357045195,-645.36,0.00016438,2]
[354234957,1740357045204,-512.26,0.00016438,2]
[354234958,1740357045214,-500.0,0.00016438,2]
[354234959,1740357045223,-539.63,0.00016438,2]
[354234960,1740357045234,-742.91,0.00016438,2]
[354234961,1740357045243,-637.84,0.00016438,2]
[354234962,1740357045253,-500.0,0.00016438,2]
[354234963,1740357045263,-1221.29,0.00016438,2]
[354234964,1740357045272,-788.08,0.00016438,2]
[354234965,1740357045282,-500.0,0.00016438,2]
[354234966,1740357045292,-500.0,0.00016438,2]
[354234967,1740357045301,-500.0,0.00016438,2]
[354234968,1740357045311,-500.0,0.00016438,2]
[354234969,1740357045321,-622.59,0.00016438,2]
[354234970,1740357045331,-1072.67,0.00016438,2]
[354234971,1740357045342,-500.0,0.00016438,2]
[354234972,1740357045351,-214.05485373,0.00016438,2]
[354234973,1740357045361,-500.0,0.00016438,2]
[354234974,1740357045372,-500.0,0.00016438,2]
[354234975,1740357045386,-500.0,0.00016438,2]
[354234976,1740357045395,-627.52,0.00016438,2]
[354234977,1740357045404,-500.0,0.00016438,2]
[354234978,1740357045415,-500.0,0.00016438,2]
[354234979,1740357045424,-574.66,0.00016438,2]
[354234980,1740357045434,-883.71,0.00016438,2]
[354234981,1740357045443,-500.0,0.00016438,2]
[354234982,1740357045455,-522.22052889,0.00016438,2]
[354234983,1740357045465,-500.0,0.00016438,2]
[354234984,1740357045475,-500.0,0.00016438,2]
[354234985,1740357045484,-500.0,0.00016438,2]
[354234986,1740357045493,-625.77,0.00016438,2]
[354234987,1740357045502,-500.0,0.00016438,2]
[354234988,1740357045512,-500.0,0.00016438,2]
[354234989,1740357045522,-1084.69,0.00016438,2]
[354234990,1740357045532,-500.0,0.00016438,2]
[354234991,1740357045542,-1101.63,0.00016438,2]
[354234992,1740357045551,-1419.67,0.00016438,2]
[354234993,1740357045562,-500.0,0.00016438,2]
[354234994,1740357045572,-500.0,0.00016438,2]
[354234995,1740357045581,-500.0,0.00016438,2]
[354234996,1740357045590,-500.0,0.00016438,2]
[354234997,1740357045599,-500.0,0.00016438,2]
[354234998,1740357045608,-500.0,0.00016438,2]
[354234999,1740357045619,-500.0,0.00016438,2]
[354235000,1740357045628,-500.0,0.00016438,2]
[354235001,1740357045637,-500.0,0.00016438,2]
[354235002,1740357045647,-500.0,0.00016438,2]
[354235003,1740357045656,-1009.55,0.00016438,2]
[354235004,1740357045665,-500.0,0.00016438,2]
[354235005,1740357045675,-500.0,0.00016438,2]
[354235006,1740357045684,-539.21512011,0.00016438,2]
[354235007,1740357045694,-245.08740425,0.00016438,2]
[354235008,1740357045703,-500.0,0.00016438,2]
[354235009,1740357045712,-323.08026479,0.00016438,2]
[354235010,1740357045740,-176.91973521,0.00016438,2]
[354235011,1740357045749,-396.76026474,0.00016438,2]
[354235012,1740357045761,-103.23973526,0.00016438,2]
[354235013,1740357045770,-757.17,0.00016438,2]
[354235014,1740357045780,-500.0,0.00016438,2]
[354235015,1740357045789,-573.09,0.00016438,2]
[354235016,1740357045798,-1659.38,0.00016438,2]
[354235017,1740357045807,-500.0,0.00016438,2]
[354235018,1740357045817,-200.74848119,0.00016438,2]
[354235019,1740357045833,-299.25151881,0.00016438,2]
[354235020,1740357045842,-500.0,0.00016438,2]
[354235021,1740357045851,-500.0,0.00016438,2]
[354235022,1740357045861,-500.0,0.00016438,2]
[354235023,1740357045870,-1467.75,0.00016438,2]
[354235024,1740357045879,-1423.64,0.00016438,2]
[354235025,1740357045888,-1030.39,0.00016438,2]
[354235026,1740357045898,-285.62848119,0.00016438,2]
[354235027,1740357045909,-214.37151881,0.00016438,2]
[354235028,1740357045919,-172.21980566,0.00016438,2]
[354235029,1740357045931,-327.78019434,0.00016438,2]
[354235030,1740357045940,-446.91839006,0.00016438,2]
[354235031,1740357045952,-53.08160994,0.00016438,2]
[354235032,1740357045962,-289.33777282,0.00016438,2]
[354235033,1740357045971,-650.36475831,0.00016438,2]
[354235034,1740357045982,-2467.30921759,0.00016438,2]
[354235035,1740357045994,-40.3860241,0.00016438,2]
[354235036,1740357046003,-569.1139759,0.00016438,2]
[354235038,1740357046016,-702.9460241,0.00016438,2]
[354235039,1740357046026,-962.53,0.00016438,2]
[354235041,1740357046035,-841.08,0.00016438,2]
[354235043,1740357046044,-500.0,0.00016438,2]
[354235044,1740357046054,-522.73971553,0.00016438,2]
[354235045,1740357046063,-604.35,0.00016438,2]
[354235046,1740357046072,-785.35426017,0.00016438,2]
[354235047,1740357046084,-86.35573983,0.00016438,2]
[354235048,1740357046093,-500.0,0.00016438,2]
[354235049,1740357046102,-500.0,0.00016438,2]
[354235050,1740357046112,-500.0,0.00016438,2]
[354235051,1740357046122,-500.0,0.00016438,2]
[354235052,1740357046132,-283.08188967,0.00016438,2]
[354235053,1740357046144,-216.91811033,0.00016438,2]
[354235054,1740357046153,-500.0,0.00016438,2]
[354235055,1740357046162,-500.0,0.00016438,2]
[354235056,1740357046172,-83.08188967,0.00016438,2]
[354235063,1740357046616,-416.91811033,0.00016438,2]
[354235064,1740357046625,-500.0,0.00016438,2]
[354235065,1740357046635,-706.88,0.00016438,2]
[354235066,1740357046644,-1536.14,0.00016438,2]
[354235067,1740357046653,-513.35898575,0.00016438,2]
[354235068,1740357046662,-725.29,0.00016438,2]
[354235069,1740357046671,-500.0,0.00016438,2]
[354235070,1740357046681,-1961.6,0.00016438,2]
[354235071,1740357046690,-676.71,0.00016438,2]
[354235072,1740357046699,-500.0,0.00016438,2]
[354235073,1740357046708,-538.99,0.00016438,2]
[354235074,1740357046717,-500.0,0.00016438,2]
[354235075,1740357046726,-6195.4,0.00016438,2]
[354235076,1740357046735,-569.97,0.00016438,2]
[354235077,1740357046744,-636.53,0.00016438,2]
[354235078,1740357046753,-1687.0,0.00016438,2]
[354235079,1740357046762,-656.04,0.00016438,2]
[354235080,1740357046771,-500.0,0.00016438,2]
[354235081,1740357046780,-903.05,0.00016438,2]
[354235082,1740357046790,-568.63,0.00016438,2]
[354235083,1740357046800,-500.0,0.00016438,2]
[354235084,1740357046809,-3068.6,0.00016438,2]
[354235085,1740357046818,-3003.95,0.00016438,2]
[354235086,1740357046827,-500.0,0.00016438,2]
[354235087,1740357046836,-1875.22,0.00016438,2]
[354235088,1740357046846,-1523.1,0.00016438,2]
[354235089,1740357046855,-1410.59,0.00016438,2]
[354235090,1740357046864,-500.0,0.00016438,2]
[354235091,1740357046873,-678.58,0.00016438,2]
[354235092,1740357046882,-1082.42,0.00016438,2]
[354235093,1740357046942,-2383.4,0.00016438,2]
[354235094,1740357046951,-1221.49,0.00016438,2]
[354235095,1740357046961,-3515.61,0.00016438,2]
[354235096,1740357046970,-500.0,0.00016438,2]
[354235097,1740357046979,-2672.99,0.00016438,2]
[354235098,1740357046988,-500.0,0.00016438,2]
[354235099,1740357046997,-2794.68,0.00016438,2]
[354235100,1740357047005,-500.0,0.00016438,2]
[354235101,1740357047014,-976.85,0.00016438,2]
[354235102,1740357047023,-1350.66,0.00016438,2]
[354235103,1740357047032,-1098.37,0.00016438,2]
[354235104,1740357047041,-2107.75,0.00016438,2]
[354235105,1740357047050,-1372.17,0.00016438,2]
[354235106,1740357047059,-500.0,0.00016438,2]
[354235107,1740357047067,-1429.11,0.00016438,2]
[354235108,1740357047076,-500.0,0.00016438,2]
[354235109,1740357047085,-1176.98,0.00016438,2]
[354235110,1740357047093,-2325.34,0.00016438,2]
[354235111,1740357047102,-500.0,0.00016438,2]
[354235112,1740357047111,-5590.95,0.00016438,2]
[354235113,1740357047120,-3703.2,0.00016438,2]
[354235114,1740357047129,-3072.67,0.00016438,2]
[354235115,1740357047138,-500.0,0.00016438,2]
[354235116,1740357047147,-1267.19,0.00016438,2]
[354235117,1740357047156,-1049.43,0.00016438,2]
[354235118,1740357047165,-706.62,0.00016438,2]
[354235119,1740357047178,-2201.1,0.00016438,2]
[354235120,1740357047187,-2367.84,0.00016438,2]
[354235121,1740357047196,-1405.9,0.00016438,2]
[354235122,1740357047205,-1284.89,0.00016438,2]
[354235123,1740357047214,-500.0,0.00016438,2]
[354235124,1740357047223,-629.59,0.00016438,2]
[354235125,1740357047232,-2013.91,0.00016438,2]
[354235126,1740357047241,-414.31899712,0.00016438,2]
[354235127,1740357047253,-1026.61082776,0.00016438,2]
[354235128,1740357047264,-555.3625364,0.00016438,2]
[354235129,1740357047275,-367.03000001,0.00016438,2]
[354235130,1740357047286,-69.89763871,0.00016438,2]
[354235131,1740357047296,-823.99,0.00016438,2]
[354235132,1740357047305,-617.66,0.00016438,2]
[354235133,1740357047315,-907.79,0.00016438,2]
[354235134,1740357047324,-519.86,0.00016438,2]
[354235135,1740357047334,-1780.97,0.00016438,2]
[354235136,1740357047343,-1043.23,0.00016438,2]
[354235137,1740357047352,-500.0,0.00016438,2]
[354235138,1740357047360,-2863.64,0.00016438,2]
[354235139,1740357047370,-500.0,0.00016438,2]
[354235140,1740357047384,-1026.09,0.00016438,2]
[354235141,1740357047393,-1980.67,0.00016438,2]
[354235142,1740357047401,-500.0,0.00016438,2]
[354235143,1740357047411,-886.58,0.00016438,2]
[354235144,1740357047420,-500.0,0.00016438,2]
[354235145,1740357047430,-1729.51,0.00016438,2]
[354235146,1740357047440,-2281.62,0.00016438,2]
[354235147,1740357047450,-1767.88,0.00016438,2]
[354235148,1740357047460,-6050.85,0.00016438,2]
[354235149,1740357047469,-624.19,0.00016438,2]
[354235150,1740357047478,-1219.38,0.00016438,2]
[354235151,1740357047487,-620.93,0.00016438,2]
[354235152,1740357047496,-500.0,0.00016438,2]
[354235153,1740357047504,-721.86,0.00016438,2]
[354235154,1740357047513,-171.44424774,0.00016438,2]
[354235155,1740357047523,-1301.43,0.00016438,2]
[354235156,1740357047531,-500.0,0.00016438,2]
[354235157,1740357047540,-1202.34,0.00016438,2]
[354235158,1740357047549,-1979.84,0.00016438,2]
[354235159,1740357047558,-2165.1,0.00016438,2]
[354235160,1740357047567,-2498.73,0.00016438,2]
[354235161,1740357047576,-500.0,0.00016438,2]
[354235162,1740357047585,-500.0,0.00016438,2]
[354235163,1740357047593,-500.0,0.00016438,2]
[354235164,1740357047602,-500.0,0.00016438,2]
[354235165,1740357047611,-500.0,0.00016438,2]
[354235166,1740357047620,-1953.78,0.00016438,2]
[354235167,1740357047629,-511.98,0.00016438,2]
[354235168,1740357047638,-1243.09,0.00016438,2]
[354235169,1740357047647,-758.54,0.00016438,2]
[354235170,1740357047656,-2183.27,0.00016438,2]
[354235171,1740357047665,-500.0,0.00016438,2]
[354235172,1740357047675,-1657.59,0.00016438,2]
[354235173,1740357047684,-1799.21,0.00016438,2]
[354235174,1740357047692,-2567.08,0.00016438,2]
[354235175,1740357047701,-611.25,0.00016438,2]
[354235176,1740357047714,-1658.1,0.00016438,2]
[354235177,1740357047723,-500.0,0.00016438,2]
[354235178,1740357047732,-2917.38,0.00016438,2]
[354235179,1740357047742,-500.0,0.00016438,2]
[354235180,1740357047752,-501.93362595,0.00016438,2]
[354235181,1740357047761,-827.53,0.00016438,2]
[354235182,1740357047771,-3082.71,0.00016438,2]
[354235183,1740357047780,-3006.17,0.00016438,2]
[354235184,1740357047789,-500.0,0.00016438,2]
[354235185,1740357047798,-150.50019032,0.00016438,2]
[354235186,1740357047839,-1550.92980968,0.00016438,2]
[354235187,1740357047849,-1544.11,0.00016438,2]
[354235188,1740357047859,-717.6,0.00016438,2]
[354235189,1740357047868,-500.0,0.00016438,2]
[354235190,1740357047877,-2497.33,0.00016438,2]
[354235191,1740357047886,-1142.82,0.00016438,2]
[354235192,1740357047895,-2434.29,0.00016438,2]
[354235193,1740357047905,-982.18,0.00016438,2]
[354235194,1740357047914,-500.0,0.00016438,2]
[354235195,1740357047923,-500.0,0.00016438,2]
[354235196,1740357047932,-500.0,0.00016438,2]
[354235197,1740357047941,-2210.73,0.00016438,2]
[354235198,1740357047951,-2941.18,0.00016438,2]
[354235199,1740357047960,-500.0,0.00016438,2]
[354235200,1740357047969,-550.27663948,0.00016438,2]
[354235201,1740357047979,-1040.13,0.00016438,2]
[354235202,1740357047988,-500.0,0.00016438,2]
[354235203,1740357047997,-500.0,0.00016438,2]
[354235204,1740357048007,-1296.92,0.00016438,2]
[354235205,1740357048017,-500.0,0.00016438,2]
[354235206,1740357048027,-4561.52,0.00016438,2]
[354235207,1740357048037,-500.0,0.00016438,2]
[354235208,1740357048049,-1359.61,0.00016438,2]
[354235209,1740357048059,-500.0,0.00016438,2]
[354235210,1740357048070,-2328.05,0.00016438,2]
[354235211,1740357048079,-500.0,0.00016438,2]
[354235212,1740357048089,-525.12,0.00016438,2]
[354235213,1740357048098,-500.0,0.00016438,2]
[354235214,1740357048108,-500.0,0.00016438,2]
[354235215,1740357048117,-688.59,0.00016438,2]
[354235216,1740357048127,-1148.52,0.00016438,2]
[354235217,1740357048136,-642.16,0.00016438,2]
[354235218,1740357048146,-979.71,0.00016438,2]
[354235219,1740357048155,-1257.93,0.00016438,2]
[354235220,1740357048164,-967.07,0.00016438,2]
[354235221,1740357048174,-314.52403719,0.00016438,2]
[354235222,1740357048183,-151.0,0.00016438,2]
[354235223,1740357048193,-151.0,0.00016438,2]
[354235224,1740357048202,-2708.31,0.00016438,2]
[354235225,1740357048211,-500.0,0.00016438,2]
[354235226,1740357048220,-900.24,0.00016438,2]
[354235227,1740357048230,-897.71,0.00016438,2]
[354235228,1740357048240,-2007.04,0.00016438,2]
[354235229,1740357048250,-151.0,0.00016438,2]
[354235230,1740357048259,-500.0,0.00016438,2]
[354235231,1740357048269,-208.872871,0.00016438,2]
[354235232,1740357048278,-296.8473893,0.00016438,2]
[354235233,1740357048287,-834.9,0.00016438,2]
[354235234,1740357048297,-500.0,0.00016438,2]
[354235235,1740357048306,-500.0,0.00016438,2]
[354235236,1740357048315,-500.0,0.00016438,2]
[354235237,1740357048324,-500.0,0.00016438,2]
[354235238,1740357048333,-3125.5,0.00016438,2]
[354235239,1740357048343,-500.0,0.00016438,2]
[354235240,1740357048352,-500.0,0.00016438,2]
[354235241,1740357048362,-2905.56,0.00016438,2]
[354235242,1740357048372,-1492.33,0.00016438,2]
[354235243,1740357048384,-501.49908421,0.00016438,2]
[354235244,1740357048393,-500.0,0.00016438,2]
[354235245,1740357048403,-500.0,0.00016438,2]
[354235246,1740357048412,-151.0,0.00016438,2]
[354235247,1740357048424,-500.0,0.00016438,2]
[354235248,1740357048434,-897.1,0.00016438,2]
[354235249,1740357048444,-720.74,0.00016438,2]
[354235250,1740357048455,-500.0,0.00016438,2]
[354235251,1740357048465,-1849.87,0.00016438,2]
[354235252,1740357048474,-1530.13,0.00016438,2]
[354235253,1740357048483,-500.0,0.00016438,2]
[354235254,1740357048493,-500.0,0.00016438,2]
[354235255,1740357048503,-1622.62,0.00016438,2]
[354235256,1740357048512,-500.0,0.00016438,2]
[354235257,1740357048522,-599.71,0.00016438,2]
[354235258,1740357048531,-1096.11,0.00016438,2]
[354235259,1740357048540,-1371.67,0.00016438,2]
[354235260,1740357048550,-2448.94,0.00016438,2]
[354235261,1740357048560,-500.0,0.00016438,2]
[354235262,1740357048569,-501.59,0.00016438,2]
[354235263,1740357048578,-645.23,0.00016438,2]
[354235264,1740357048587,-500.0,0.00016438,2]
[354235265,1740357048597,-3259.39,0.00016438,2]
[354235266,1740357048606,-750.51,0.00016438,2]
[354235267,1740357048615,-792.96,0.00016438,2]
[354235268,1740357048628,-1050.0,0.00016438,2]
[354235269,1740357048637,-500.0,0.00016438,2]
[354235270,1740357048646,-1931.23,0.00016438,2]
[354235271,1740357048656,-500.0,0.00016438,2]
[354235272,1740357048665,-500.0,0.00016438,2]
[354235273,1740357048675,-500.0,0.00016438,2]
[354235274,1740357048683,-500.0,0.00016438,2]
[354235275,1740357048692,-739.19,0.00016438,2]
[354235276,1740357048702,-721.38,0.00016438,2]
[354235277,1740357048711,-1298.4,0.00016438,2]
[354235278,1740357048720,-1020.95,0.00016438,2]
[354235279,1740357048729,-500.0,0.00016438,2]
[354235280,1740357048738,-2986.14,0.00016438,2]
[354235281,1740357048747,-512.68737557,0.00016438,2]
[354235282,1740357048757,-500.0,0.00016438,2]
[354235283,1740357048767,-500.0,0.00016438,2]
[354235284,1740357048776,-193.39353408,0.00016438,2]
[354235285,1740357048785,-2043.7,0.00016438,2]
[354235286,1740357048794,-1576.4,0.00016438,2]
[354235287,1740357048803,-548.28027706,0.00016438,2]
[354235288,1740357048813,-500.0,0.00016438,2]
[354235289,1740357048822,-642.88062634,0.00016438,2]
[354235290,1740357048831,-3710.85,0.00016438,2]
[354235291,1740357048840,-1176.22,0.00016438,2]
[354235292,1740357048849,-809.37,0.00016438,2]
[354235293,1740357048859,-2600.38,0.00016438,2]
[354235294,1740357048868,-716.52,0.00016438,2]
[354235295,1740357048878,-636.79,0.00016438,2]
[354235296,1740357048889,-1294.28,0.00016438,2]
[354235297,1740357048898,-1177.37,0.00016438,2]
[354235298,1740357048908,-500.0,0.00016438,2]
[354235299,1740357048917,-500.0,0.00016438,2]
[354235300,1740357048927,-580.99,0.00016438,2]
[354235301,1740357048937,-994.39,0.00016438,2]
[354235302,1740357048947,-458.17035551,0.00016438,2]
[354235303,1740357048956,-150.03,0.00016438,2]
[354235304,1740357048965,-344.9684203,0.00016466,2]
[354235305,1740357048975,-493.67000266,0.00016466,2]
[354235306,1740357048984,-59678.0,0.000165,2]
[354235307,1740357048993,-151.0,0.000165,2]
[354235308,1740357049002,-151.0,0.000165,2]
[354235309,1740357049011,-151.0,0.000165,2]
[354235310,1740357049020,-151.0,0.000165,2]
[354235311,1740357049030,-151.0,0.000165,2]
[354235312,1740357049039,-500.0,0.00016509,2]
[354235313,1740357049048,-1000.0,0.00016519,2]
[354235314,1740357049058,-1000.0,0.00016519,2]
[354235315,1740357049067,-500.0,0.00016519,2]
[354235316,1740357049076,-500.0,0.00016519,2]
[354235317,1740357049085,-505.15673492,0.0001652,2]
[354235318,1740357049095,-89619.93902349,0.0001652,2]
[354235319,1740357049104,-500.0,0.0001652,2]
[354235320,1740357049113,-150.902072,0.0001652,2]
[354235321,1740357049123,-171.618749,0.0001652,2]
[354235322,1740357049133,-758.69,0.0001652,2]
[354235323,1740357049142,-500.0,0.0001652,2]
[354235324,1740357049152,-500.0,0.0001652,2]
[354235325,1740357049161,-653.77,0.0001652,2]
[354235326,1740357049172,-500.0,0.0001652,2]
[354235327,1740357049181,-500.0,0.0001652,2]
[354235328,1740357049191,-500.0,0.0001652,2]
[354235329,1740357049200,-674.91,0.0001652,2]
[354235330,1740357049209,-500.0,0.0001652,2]
[354235331,1740357049218,-580.21,0.0001652,2]
[354235332,1740357049228,-500.0,0.0001652,2]
[354235333,1740357049238,-500.0,0.0001652,2]
[354235334,1740357049247,-500.0,0.0001652,2]
[354235335,1740357049257,-498.46141179,0.0001652,2]
[354235336,1740357049267,-500.0,0.0001652,2]
[354235337,1740357049277,-500.0,0.0001652,2]
[354235338,1740357049288,-500.0,0.0001652,2]
[354235339,1740357049297,-500.0,0.0001652,2]
[354235340,1740357049307,-500.0,0.0001652,2]
[354235341,1740357049317,-500.0,0.0001652,2]
[354235342,1740357049331,-500.0,0.0001652,2]
[354235343,1740357049341,-679.31,0.0001652,2]
[354235344,1740357049350,-500.0,0.0001652,2]
[354235345,1740357049360,-500.0,0.0001652,2]
[354235346,1740357049370,-500.0,0.0001652,2]
[354235347,1740357049384,-500.0,0.0001652,2]
[354235348,1740357049394,-637.3145608,0.0001652,2]
[354235349,1740357049403,-500.0,0.0001652,2]
[354235350,1740357049413,-500.0,0.0001652,2]
[354235351,1740357049425,-458.2891815,0.0001652,2]
[354235352,1740357049436,-705.18,0.0001652,2]
[354235353,1740357049445,-535.94,0.0001652,2]
[354235354,1740357049456,-500.0,0.0001652,2]
[354235355,1740357049466,-632.59,0.0001652,2]
[354235356,1740357049476,-1009.44,0.0001652,2]
[354235357,1740357049485,-500.0,0.0001652,2]
[354235358,1740357049494,-500.0,0.0001652,2]
[354235359,1740357049503,-512.66230615,0.0001652,2]
[354235360,1740357049512,-500.0,0.0001652,2]
[354235361,1740357049522,-256.53069304,0.0001652,2]
[354235362,1740357049531,-500.0,0.0001652,2]
[354235363,1740357049541,-500.0,0.0001652,2]
[354235364,1740357049550,-649.15,0.0001652,2]
[354235365,1740357049559,-500.0,0.0001652,2]
[354235366,1740357049568,-500.0,0.0001652,2]
[354235367,1740357049577,-532.06806162,0.0001652,2]
[354235368,1740357049586,-604.57,0.0001652,2]
[354235369,1740357049595,-500.0,0.0001652,2]
[354235370,1740357049603,-500.0,0.0001652,2]
[354235371,1740357049613,-1127.79,0.0001652,2]
[354235372,1740357049622,-500.0,0.0001652,2]
[354235373,1740357049631,-500.0,0.0001652,2]
[354235374,1740357049640,-500.0,0.0001652,2]
[354235375,1740357049649,-500.0,0.0001652,2]
[354235376,1740357049658,-500.0,0.0001652,2]
[354235377,1740357049667,-500.0,0.0001652,2]
[354235378,1740357049677,-500.0,0.0001652,2]
[354235379,1740357049686,-500.0,0.0001652,2]
[354235380,1740357049695,-500.0,0.0001652,2]
[354235381,1740357049704,-500.0,0.0001652,2]
[354235382,1740357049713,-500.0,0.0001652,2]
[354235383,1740357049722,-546.43102073,0.0001652,2]
[354235384,1740357049731,-500.0,0.0001652,2]
[354235385,1740357049740,-500.0,0.0001652,2]
[354235386,1740357049749,-500.0,0.0001652,2]
[354235387,1740357049758,-500.0,0.0001652,2]
[354235388,1740357049768,-500.0,0.0001652,2]
[354235389,1740357049777,-500.0,0.0001652,2]
[354235390,1740357049786,-500.0,0.0001652,2]
[354235391,1740357049795,-500.0,0.0001652,2]
[354235392,1740357049805,-500.0,0.0001652,2]
[354235393,1740357049814,-500.0,0.0001652,2]
[354235394,1740357049824,-500.0,0.0001652,2]
[354235395,1740357049833,-500.0,0.0001652,2]
[354235396,1740357049842,-500.0,0.0001652,2]
[354235397,1740357049851,-500.0,0.0001652,2]
[354235398,1740357049860,-500.0,0.0001652,2]
[354235399,1740357049870,-500.0,0.0001652,2]
[354235400,1740357049879,-594.55,0.0001652,2]
[354235401,1740357049888,-500.0,0.0001652,2]
[354235402,1740357049897,-500.0,0.0001652,2]
[354235403,1740357049906,-500.0,0.0001652,2]
[354235404,1740357049915,-511.15,0.0001652,2]
[354235405,1740357049924,-518.56,0.0001652,2]
[354235406,1740357049934,-500.0,0.0001652,2]
[354235407,1740357049942,-500.0,0.0001652,2]
[354235408,1740357049951,-500.0,0.0001652,2]
[354235409,1740357049960,-500.0,0.0001652,2]
[354235410,1740357049969,-277.92,0.0001652,2]